bitfinex/quotes_BTCUSD_20240927
["timestamp","ask_amount","ask_price","bid_price","bid_amount"]
[1727421066204,0.14477893,65412.0,65411.0,0.66830864]
[1727421067051,0.14477893,65412.0,65411.0,0.61832317]
[1727421067712,0.14477893,65412.0,65411.0,0.52493929]
[1727421067926,0.14477893,65412.0,65411.0,0.61832317]
[1727421070302,0.14425206,65412.0,65411.0,0.61832317]
[1727421071301,0.14425206,65412.0,65411.0,0.61832116]
[1727421074696,0.14425206,65412.0,65411.0,0.6183214]
[1727421076146,0.14425206,65412.0,65411.0,0.66952423]
[1727421077833,0.14425206,65412.0,65411.0,0.82445773]
[1727421078269,0.14425206,65412.0,65411.0,0.66952423]
[1727421078481,0.14425206,65412.0,65411.0,0.82446158]
[1727421078695,0.0783,65418.0,65411.0,0.82446158]
[1727421078696,0.0924,65418.0,65417.0,0.154865]
[1727421078967,0.0924,65418.0,65417.0,0.72290691]
[1727421079215,0.0924,65418.0,65417.0,0.71985024]
[1727421079428,0.0783,65427.0,65423.0,0.102]
[1727421079648,0.22931747,65455.0,65430.0,0.152835]
[1727421079649,0.0783,65431.0,65430.0,0.152835]
[1727421079869,0.0783,65435.0,65434.0,0.252825]
[1727421080077,0.0783,65435.0,65434.0,0.36223397]
[1727421080288,0.0783,65435.0,65434.0,0.36117793]
[1727421080500,0.07803627,65435.0,65434.0,0.36117793]
[1727421080931,0.22931747,65455.0,65439.0,0.002]
[1727421081149,0.22931747,65455.0,65444.0,0.34618588]
[1727421081364,0.001654,65458.0,65457.0,0.152772]
[1727421081577,0.001654,65458.0,65457.0,0.24615588]
[1727421082220,0.001654,65458.0,65457.0,0.29504117]
[1727421082433,0.094054,65458.0,65457.0,0.29800274]
[1727421082647,0.108054,65458.0,65457.0,0.29594764]
[1727421082859,0.108054,65458.0,65457.0,0.34173946]
[1727421083321,0.108054,65458.0,65457.0,0.29594764]
[1727421083534,0.186354,65458.0,65457.0,0.29594764]
[1727421083703,0.197354,65458.0,65457.0,0.29694764]
[1727421084967,0.197354,65458.0,65457.0,0.154772]
[1727421089923,0.197354,65458.0,65457.0,0.45576032]
[1727421090381,0.197354,65458.0,65457.0,0.41005994]
[1727421091044,0.183354,65458.0,65457.0,0.40905994]
[1727421091266,0.178354,65458.0,65457.0,0.40905994]
[1727421091511,0.182354,65458.0,65457.0,0.40905994]
[1727421091923,0.178354,65458.0,65457.0,0.40905994]
[1727421092331,0.181354,65458.0,65457.0,0.40905994]
[1727421092539,0.010654,65458.0,65457.0,0.51597832]
[1727421092752,0.010654,65458.0,65457.0,0.47027794]
[1727421092965,0.010654,65458.0,65457.0,0.52026341]
[1727421093171,0.010654,65458.0,65457.0,0.63451436]
[1727421093383,0.010654,65458.0,65457.0,0.52813441]
[1727421094036,0.004654,65458.0,65457.0,0.66423556]
[1727421094249,0.001654,65458.0,65457.0,0.66923556]
[1727421094463,0.001654,65458.0,65457.0,0.53213441]
[1727421094664,0.001654,65458.0,65457.0,0.52913441]
[1727421094852,0.002654,65458.0,65457.0,0.53813441]
[1727421095090,0.002654,65458.0,65457.0,0.53613441]
[1727421095305,0.003654,65458.0,65457.0,0.56913441]
[1727421097016,0.003654,65458.0,65457.0,0.51914894]
[1727421098308,0.003654,65458.0,65457.0,0.56913441]
[1727421099549,1e-06,65458.0,65457.0,0.56913441]
[1727421100427,0.22889333,65466.0,65465.0,0.002]
[1727421100647,0.001656,65472.0,65471.0,0.252739]
[1727421100824,0.001656,65472.0,65471.0,0.55020258]
[1727421101523,0.001656,65472.0,65471.0,0.40802694]
[1727421101914,0.007656,65472.0,65471.0,0.40902694]
[1727421103690,0.010656,65472.0,65471.0,0.40902694]
[1727421103897,0.010656,65472.0,65471.0,0.41511642]
[1727421106488,0.010656,65472.0,65471.0,0.50837831]
[1727421108958,0.004656,65472.0,65471.0,0.50737831]
[1727421109547,0.010656,65472.0,65471.0,0.553806]
[1727421109697,0.007656,65472.0,65471.0,0.50837831]
[1727421109904,0.010656,65472.0,65471.0,0.50837831]
[1727421110306,0.010656,65472.0,65471.0,0.553806]
[1727421110307,0.01039279,65472.0,65471.0,0.553806]
[1727421110542,0.00739279,65472.0,65471.0,0.553806]
[1727421110747,0.00739279,65472.0,65471.0,0.555806]
[1727421110919,0.00139279,65472.0,65471.0,0.554806]
[1727421111096,0.00239279,65472.0,65471.0,0.554806]
[1727421111302,0.00239279,65472.0,65471.0,0.50937831]
[1727421113211,0.00239279,65472.0,65471.0,0.57751985]
[1727421114272,0.00239279,65472.0,65471.0,0.50937831]
[1727421115441,0.00239279,65472.0,65471.0,0.6002337]
[1727421116384,0.00239279,65472.0,65471.0,0.50937831]
[1727421117368,0.00239279,65472.0,65471.0,0.62294754]
[1727421117583,0.00239279,65472.0,65471.0,0.50937831]
[1727421118024,0.00239279,65472.0,65471.0,0.72216139]
[1727421118025,0.001,65472.0,65471.0,0.72216139]
[1727421118206,7.9e-07,65472.0,65471.0,0.59871397]
[1727421118421,0.001656,65478.0,65477.0,0.002]
[1727421118635,0.001656,65478.0,65477.0,0.51611049]
[1727421120292,0.002656,65478.0,65477.0,0.52211049]
[1727421120566,0.002656,65478.0,65477.0,0.57589394]
[1727421120792,0.002656,65478.0,65477.0,0.57588883]
[1727421121234,0.002656,65478.0,65477.0,0.77733211]
[1727421121450,0.002656,65478.0,65477.0,0.57588883]
[1727421126127,0.002656,65478.0,65477.0,0.57388883]
[1727421126815,0.002656,65478.0,65477.0,0.57588883]
[1727421127038,0.002656,65478.0,65477.0,0.56305828]
[1727421127255,0.002656,65478.0,65477.0,0.57589767]
[1727421129806,0.002656,65478.0,65477.0,0.56305828]
[1727421130016,0.002656,65478.0,65477.0,0.57590243]
[1727421130452,0.00212886,65478.0,65477.0,0.63709143]
[1727421133246,0.00212886,65478.0,65477.0,0.62424728]
[1727421133459,0.00212886,65478.0,65477.0,0.63708583]
[1727421136813,0.00212886,65478.0,65477.0,0.62424728]
[1727421137038,0.00212886,65478.0,65477.0,0.63710669]
[1727421140226,0.00212886,65478.0,65477.0,0.62424728]
[1727421140437,0.00186521,65478.0,65477.0,0.63710757]
[1727421142369,0.00186521,65478.0,65477.0,0.58827873]
[1727421143493,0.17436521,65478.0,65477.0,0.49306223]
[1727421143699,0.17436521,65478.0,65477.0,0.58627873]
[1727421144128,0.09496521,65478.0,65477.0,0.58827873]
[1727421144343,0.09496521,65478.0,65477.0,0.58327873]
[1727421144607,0.09496521,65478.0,65477.0,0.58127873]
[1727421144851,0.09396521,65478.0,65477.0,0.57527873]
[1727421145095,0.09396521,65478.0,65477.0,0.57927873]
[1727421145574,0.09396521,65478.0,65477.0,0.57527873]
[1727421145797,0.09396521,65478.0,65477.0,0.57927873]
[1727421146291,0.09396521,65478.0,65477.0,0.58227873]
[1727421146552,0.09396521,65478.0,65477.0,0.76893323]
[1727421146817,0.09396521,65478.0,65477.0,0.57931457]
[1727421147068,0.09396521,65478.0,65477.0,0.56941844]
[1727421147323,0.09396521,65478.0,65477.0,0.58231486]
[1727421147583,0.09396521,65478.0,65477.0,0.78482965]
[1727421147821,0.09396521,65478.0,65477.0,0.78648365]
[1727421148054,0.09396521,65478.0,65477.0,0.58396886]
[1727421149925,0.09396521,65478.0,65477.0,0.58596886]
[1727421149926,0.00086521,65478.0,65477.0,0.58596886]
[1727421150168,0.00086521,65478.0,65477.0,0.78848365]
[1727421151370,0.00086521,65478.0,65477.0,0.58596886]
[1727421151812,0.00086521,65478.0,65477.0,0.7865923]
[1727421152271,0.00086521,65478.0,65477.0,0.78659324]
[1727421152506,0.00086521,65478.0,65477.0,0.63512784]
[1727421152738,0.00086521,65478.0,65477.0,0.58596886]
[1727421153203,0.00086521,65478.0,65477.0,0.57307244]
[1727421153448,0.00086521,65478.0,65477.0,0.58598734]
[1727421154871,0.00086521,65478.0,65477.0,0.63714326]
[1727421155085,0.00086521,65478.0,65477.0,0.68869066]
[1727421155943,0.001656,65484.0,65483.0,0.154711]
[1727421156175,0.001656,65484.0,65483.0,0.55742491]
[1727421156379,0.001656,65484.0,65483.0,0.56728626]
[1727421157562,0.002656,65484.0,65483.0,0.57328626]
[1727421158450,0.002656,65484.0,65483.0,0.57910391]
[1727421159268,0.002656,65484.0,65483.0,0.58610391]
[1727421159663,0.002656,65484.0,65483.0,0.57318901]
[1727421159873,0.002656,65484.0,65483.0,0.58607713]
[1727421160522,0.00239213,65484.0,65483.0,0.58607713]
[1727421163042,0.00239213,65484.0,65483.0,0.57318901]
[1727421163295,0.00239213,65484.0,65483.0,0.58607767]
[1727421166433,0.00239213,65484.0,65483.0,0.57318901]
[1727421166746,0.00239213,65484.0,65483.0,0.59219348]
[1727421167201,0.001654,65486.0,65485.0,0.254706]
[1727421167417,0.001654,65486.0,65485.0,0.65468398]
[1727421167621,0.001654,65486.0,65485.0,0.49703633]
[1727421168468,0.001654,65486.0,65485.0,0.50203633]
[1727421169545,0.001654,65486.0,65485.0,0.50503633]
[1727421170695,0.00139035,65486.0,65485.0,0.50503633]
[1727421171109,3.5e-07,65486.0,65485.0,0.50510678]
[1727421172553,3.5e-07,65486.0,65485.0,0.6595457]
[1727421172913,3.5e-07,65486.0,65485.0,0.50510678]
[1727421173163,3.5e-07,65486.0,65485.0,0.65954489]
[1727421173960,3.5e-07,65489.0,65488.0,0.3479155]
[1727421174179,3.5e-07,65489.0,65488.0,0.56724583]
[1727421175082,3.5e-07,65489.0,65488.0,0.59024583]
[1727421175334,0.083727,65501.0,65497.0,0.002]
[1727421175582,0.083727,65501.0,65500.0,0.252671]
[1727421175583,0.000827,65501.0,65500.0,0.252671]
[1727421175788,0.000827,65501.0,65500.0,0.51911476]
[1727421175998,0.000827,65501.0,65500.0,0.51606191]
[1727421176212,0.084554,65506.0,65500.0,0.51606191]
[1727421176213,0.084554,65506.0,65505.0,0.25266]
[1727421176426,0.22910732,65519.0,65505.0,0.25266]
[1727421176427,0.0829,65512.0,65508.0,0.252653]
[1727421176641,0.0829,65516.0,65508.0,0.50420961]
[1727421176841,0.0829,65516.0,65508.0,0.7056665]
[1727421177030,0.0829,65516.0,65508.0,0.50315744]
[1727421177443,0.0829,65516.0,65508.0,0.75456099]
[1727421177679,0.0829,65516.0,65508.0,0.70557429]
[1727421177888,0.0829,65516.0,65508.0,0.50915744]
[1727421178374,0.09,65511.0,65508.0,0.50315744]
[1727421178822,0.09,65511.0,65508.0,0.51015744]
[1727421179025,0.09,65511.0,65508.0,0.51617067]
[1727421179269,0.09,65511.0,65508.0,0.52017067]
[1727421179475,0.09,65511.0,65508.0,0.51617067]
[1727421179727,0.09,65511.0,65508.0,0.52017067]
[1727421180595,0.09,65511.0,65508.0,0.51317067]
[1727421180851,0.09,65511.0,65508.0,0.51917067]
[1727421182102,0.0902,65515.0,65508.0,0.51917067]
[1727421182580,0.0902,65515.0,65508.0,0.42395417]
[1727421182807,0.081054,65509.0,65508.0,0.51717067]
[1727421183228,0.171254,65509.0,65508.0,0.42395417]
[1727421183445,0.171254,65509.0,65508.0,0.31794094]
[1727421183666,0.171254,65509.0,65508.0,0.162653]
[1727421184089,0.171254,65509.0,65508.0,0.156653]
[1727421184948,0.171254,65509.0,65508.0,0.252653]
[1727421185162,0.176254,65509.0,65508.0,0.253653]
[1727421185387,0.180254,65509.0,65508.0,0.254653]
[1727421185875,0.175254,65509.0,65508.0,0.253653]
[1727421186318,0.179254,65509.0,65508.0,0.254653]
[1727421186541,0.175254,65509.0,65508.0,0.253653]
[1727421186753,0.176254,65509.0,65508.0,0.253653]
[1727421186979,0.180254,65509.0,65508.0,0.254653]
[1727421187394,0.176254,65509.0,65508.0,0.253653]
[1727421187806,0.180254,65509.0,65508.0,0.254653]
[1727421189467,0.180254,65509.0,65508.0,0.26063705]
[1727421189676,0.180254,65509.0,65508.0,0.41592499]
[1727421191237,0.180254,65509.0,65508.0,0.50723005]
[1727421192479,0.180254,65509.0,65508.0,0.41592499]
[1727421192689,0.180254,65509.0,65508.0,0.50723005]
[1727421192893,0.180254,65509.0,65508.0,0.50723878]
[1727421193345,0.176254,65509.0,65508.0,0.50623878]
[1727421193551,0.176254,65509.0,65508.0,0.50723878]
[1727421193552,0.180254,65509.0,65508.0,0.50723878]
[1727421193762,0.180254,65509.0,65508.0,0.41592499]
[1727421194398,0.175254,65509.0,65508.0,0.41492499]
[1727421195034,0.010654,65509.0,65508.0,0.55289568]
[1727421195250,0.010654,65509.0,65508.0,0.41592499]
[1727421195467,0.005654,65509.0,65508.0,0.41492499]
[1727421195969,0.006654,65509.0,65508.0,0.41592499]
[1727421196189,0.005654,65509.0,65508.0,0.41692499]
[1727421196620,0.001654,65509.0,65508.0,0.41392499]
[1727421197041,0.003654,65509.0,65508.0,0.41392499]
[1727421197482,0.007654,65509.0,65508.0,0.41392499]
[1727421198786,0.005654,65509.0,65508.0,0.41392499]
[1727421198997,0.001654,65509.0,65508.0,0.41392499]
[1727421199211,0.001654,65509.0,65508.0,0.41792499]
[1727421199657,0.001654,65509.0,65508.0,0.41492499]
[1727421200104,0.001654,65509.0,65508.0,0.41992499]
[1727421200516,0.00139079,65509.0,65508.0,0.41892499]
[1727421200946,0.00139079,65509.0,65508.0,0.41992499]
[1727421202677,0.00139079,65509.0,65508.0,0.56192105]
[1727421210938,0.00139079,65509.0,65508.0,0.76224505]
[1727421211400,0.00139079,65509.0,65508.0,0.56192105]
[1727421211614,0.00139079,65509.0,65508.0,0.76424505]
[1727421212479,0.00139079,65509.0,65508.0,0.71538023]
[1727421213362,0.00139079,65509.0,65508.0,0.71338023]
[1727421213836,0.00139079,65509.0,65508.0,0.71538023]
[1727421214018,0.00139079,65509.0,65508.0,0.71338023]
[1727421214714,0.00139079,65509.0,65508.0,0.7154984]
[1727421215339,0.00139079,65509.0,65508.0,0.51305623]
[1727421217051,0.00139079,65509.0,65508.0,0.51205623]
[1727421217489,0.00239079,65509.0,65508.0,0.51205623]
[1727421217765,0.00239079,65509.0,65508.0,0.50905623]
[1727421217987,0.00239079,65509.0,65508.0,0.51005623]
[1727421218207,0.00139079,65509.0,65508.0,0.50805623]
[1727421218433,0.00139079,65509.0,65508.0,0.50705623]
[1727421218657,0.00139079,65509.0,65508.0,0.50805623]
[1727421218871,0.00139079,65509.0,65508.0,0.51105623]
[1727421219090,0.00139079,65509.0,65508.0,0.57221423]
[1727421221242,0.00139079,65509.0,65508.0,0.57386823]
[1727421223627,0.00139079,65509.0,65508.0,0.57286823]
[1727421223843,0.00139079,65509.0,65508.0,0.56986823]
[1727421224100,0.00239079,65509.0,65508.0,0.56986823]
[1727421224307,0.00139079,65509.0,65508.0,0.57086823]
[1727421224542,0.00139079,65509.0,65508.0,0.57186823]
[1727421224752,0.00139079,65509.0,65508.0,0.57086823]
[1727421225170,0.00139079,65509.0,65508.0,0.57386823]
[1727421228054,0.00139079,65509.0,65508.0,0.62499711]
[1727421228295,0.00139079,65509.0,65508.0,0.62699711]
[1727421228776,0.00139079,65509.0,65508.0,0.62599711]
[1727421229023,0.00139079,65509.0,65508.0,0.62699711]
[1727421229728,0.00139079,65509.0,65508.0,0.62499711]
[1727421232916,0.17769079,65509.0,65508.0,0.62499711]
[1727421233967,0.17769079,65509.0,65508.0,0.57386823]
[1727421234217,0.17769079,65509.0,65508.0,0.77656383]
[1727421234703,0.17769079,65509.0,65508.0,0.77356383]
[1727421234931,0.17769079,65509.0,65508.0,0.77256383]
[1727421235132,0.18169079,65509.0,65508.0,0.59286823]
[1727421235298,0.17869079,65509.0,65508.0,0.7956174]
[1727421235598,0.17769079,65509.0,65508.0,0.79567466]
[1727421235846,0.17869079,65509.0,65508.0,0.79567466]
[1727421236326,0.17869079,65509.0,65508.0,0.59286823]
[1727421236793,0.18169079,65509.0,65508.0,0.59286823]
[1727421237518,0.18169079,65509.0,65508.0,0.60577559]
[1727421240600,0.00539079,65509.0,65508.0,0.59286823]
[1727421240843,0.00539079,65509.0,65508.0,0.64601173]
[1727421241044,0.00539079,65509.0,65508.0,0.65892173]
[1727421241674,7.9e-07,65509.0,65508.0,0.65892173]
[1727421241887,7.9e-07,65509.0,65508.0,0.70888618]
[1727421242970,7.9e-07,65509.0,65508.0,0.65892173]
[1727421243194,7.9e-07,65509.0,65508.0,0.56579049]
[1727421243400,7.9e-07,65509.0,65508.0,0.65892173]
[1727421243620,7.9e-07,65509.0,65508.0,0.81354715]
[1727421243831,7.9e-07,65509.0,65508.0,0.65892173]
[1727421244041,7.9e-07,65509.0,65508.0,0.81354715]
[1727421244476,0.00082779,65509.0,65508.0,0.81354715]
[1727421244895,0.00082779,65509.0,65508.0,0.65892173]
[1727421246377,0.00082779,65509.0,65508.0,0.59486823]
[1727421246586,0.00082779,65509.0,65508.0,0.80064923]
[1727421246790,0.00082779,65509.0,65508.0,0.81354898]
[1727421247483,0.00082779,65509.0,65508.0,0.65692418]
[1727421249631,0.000827,65509.0,65508.0,0.64402443]
[1727421250111,0.002827,65509.0,65508.0,0.65692023]
[1727421250320,0.000827,65509.0,65508.0,0.65792023]
[1727421250755,0.001827,65509.0,65508.0,0.65792023]
[1727421250992,0.000827,65509.0,65508.0,0.65792023]
[1727421251212,0.000827,65509.0,65508.0,0.65692023]
[1727421251213,0.001827,65509.0,65508.0,0.65692023]
[1727421251426,0.000827,65509.0,65508.0,0.65792023]
[1727421251868,0.000827,65509.0,65508.0,0.65692023]
[1727421252350,0.000827,65509.0,65508.0,0.64602443]
[1727421252606,0.000827,65509.0,65508.0,0.65891817]
[1727421253266,0.000827,65509.0,65508.0,0.65691817]
[1727421253484,0.001827,65509.0,65508.0,0.64402443]
[1727421253705,0.000827,65509.0,65508.0,0.65691658]
[1727421253985,0.000827,65509.0,65508.0,0.65891658]
[1727421254194,0.000827,65509.0,65508.0,0.65791658]
[1727421254605,0.000827,65509.0,65508.0,0.66091658]
[1727421254807,0.000827,65509.0,65508.0,0.66191658]
[1727421255023,0.000827,65509.0,65508.0,0.65891658]
[1727421255231,0.000827,65509.0,65508.0,0.64702443]
[1727421255635,0.000827,65509.0,65508.0,0.65791651]
[1727421256400,0.000827,65509.0,65508.0,0.66391651]
[1727421256812,0.000827,65509.0,65508.0,0.66591651]
[1727421257018,0.000827,65509.0,65508.0,0.67191651]
[1727421258014,0.000827,65509.0,65508.0,0.66991651]
[1727421258218,0.099927,65509.0,65508.0,0.66991651]
[1727421259025,0.099927,65509.0,65508.0,0.61876031]
[1727421260763,0.099927,65509.0,65508.0,0.52562042]
[1727421260989,0.099927,65509.0,65508.0,0.61875166]
[1727421261213,0.099927,65509.0,65508.0,0.61875189]
[1727421261443,0.179627,65509.0,65508.0,0.61875189]
[1727421261854,0.179627,65509.0,65508.0,0.52562065]
[1727421262045,0.179627,65509.0,65508.0,0.61875189]
[1727421264040,0.179627,65509.0,65508.0,0.60586823]
[1727421264241,0.000827,65509.0,65508.0,0.52560544]
[1727421264446,0.000827,65509.0,65508.0,0.66870113]
[1727421265685,0.000827,65509.0,65508.0,0.61873668]
[1727421267400,0.000827,65509.0,65508.0,0.62073668]
[1727421267611,0.000827,65509.0,65508.0,0.61873668]
[1727421271662,0.000827,65509.0,65508.0,0.61872107]
[1727421274678,0.000827,65509.0,65508.0,0.60586823]
[1727421274884,0.000827,65509.0,65508.0,0.61871925]
[1727421278510,0.000827,65509.0,65508.0,0.66988749]
[1727421278717,0.000827,65509.0,65508.0,0.61871925]
[1727421279563,0.000827,65509.0,65508.0,0.61171925]
[1727421279782,0.000827,65509.0,65508.0,0.60571925]
[1727421280203,0.000827,65509.0,65508.0,0.61371925]
[1727421280637,0.000827,65509.0,65508.0,0.61571925]
[1727421281082,0.000827,65509.0,65508.0,0.66688902]
[1727421281961,0.000827,65509.0,65508.0,0.81650565]
[1727421282184,0.000827,65509.0,65508.0,0.81653618]
[1727421282421,0.000827,65509.0,65508.0,0.66691955]
[1727421283718,0.22910732,65518.0,65517.0,0.152632]
[1727421283948,0.22910732,65518.0,65517.0,0.51393273]
[1727421284167,0.0758,65519.0,65518.0,0.152629]
[1727421284430,0.0758,65519.0,65518.0,0.42079849]
[1727421285081,0.0758,65519.0,65518.0,0.40791694]
[1727421285529,0.0778,65519.0,65518.0,0.421837]
[1727421286164,0.0818,65519.0,65518.0,0.421837]
[1727421286616,0.0778,65519.0,65518.0,0.421837]
[1727421287455,0.0758,65519.0,65518.0,0.420837]
[1727421287664,0.0758,65519.0,65518.0,0.42684875]
[1727421287875,0.0778,65519.0,65518.0,0.42684875]
[1727421288078,0.0758,65519.0,65518.0,0.42684875]
[1727421288532,0.0778,65519.0,65518.0,0.42684875]
[1727421289362,0.0798,65519.0,65518.0,0.42684875]
[1727421289800,0.0778,65519.0,65518.0,0.42684875]
[1727421291764,0.0778,65519.0,65518.0,0.41392869]
[1727421292264,0.0778,65519.0,65518.0,0.4268717]
[1727421292498,0.078628,65519.0,65518.0,0.43981471]
[1727421295285,0.078628,65519.0,65518.0,0.4268717]
[1727421295546,0.078628,65519.0,65518.0,0.43981891]
[1727421296712,0.078628,65519.0,65518.0,0.4268759]
[1727421301405,0.076628,65519.0,65518.0,0.4268759]
[1727421301646,0.076628,65519.0,65518.0,0.41392869]
[1727421301875,0.078628,65519.0,65518.0,0.52000991]
[1727421302595,0.177628,65519.0,65518.0,0.52000991]
[1727421303112,0.175628,65519.0,65518.0,0.52000991]
[1727421303836,0.177628,65519.0,65518.0,0.42687867]
[1727421304070,0.177628,65519.0,65518.0,0.52000991]
[1727421304528,0.177628,65519.0,65518.0,0.42687867]
[1727421304763,0.177628,65519.0,65518.0,0.50705993]
[1727421305032,0.177628,65519.0,65518.0,0.42687096]
[1727421306550,0.177628,65519.0,65518.0,0.62970032]
[1727421308767,0.177628,65519.0,65518.0,0.42687096]
[1727421309000,0.177628,65519.0,65518.0,0.42085921]
[1727421309961,0.177628,65519.0,65518.0,0.5582435]
[1727421311185,0.177628,65519.0,65518.0,0.40295556]
[1727421311419,0.177628,65519.0,65518.0,0.252629]
[1727421312360,0.181628,65519.0,65518.0,0.253629]
[1727421312808,0.175628,65519.0,65518.0,0.252629]
[1727421313035,0.179628,65519.0,65518.0,0.253629]
[1727421314135,0.183628,65519.0,65518.0,0.254629]
[1727421315049,0.183628,65519.0,65518.0,0.34776024]
[1727421315476,0.183628,65519.0,65518.0,0.254629]
[1727421315882,0.179628,65519.0,65518.0,0.253629]
[1727421316335,0.179628,65519.0,65518.0,0.34776024]
[1727421316336,0.183628,65519.0,65518.0,0.34776024]
[1727421316562,0.179628,65519.0,65518.0,0.34676024]
[1727421316777,0.179628,65519.0,65518.0,0.253629]
[1727421316979,0.179628,65519.0,65518.0,0.254629]
[1727421316980,0.183628,65519.0,65518.0,0.254629]
[1727421317170,0.179628,65519.0,65518.0,0.253629]
[1727421317398,0.179628,65519.0,65518.0,0.254629]
[1727421317601,0.183628,65519.0,65518.0,0.254629]
[1727421318021,0.179628,65519.0,65518.0,0.253629]
[1727421318449,0.183628,65519.0,65518.0,0.40991694]
[1727421319950,0.179628,65519.0,65518.0,0.40891694]
[1727421320161,0.183628,65519.0,65518.0,0.40991694]
[1727421320835,0.179628,65519.0,65518.0,0.40891694]
[1727421321484,0.183628,65519.0,65518.0,0.40891694]
[1727421321671,0.183628,65519.0,65518.0,0.546251]
[1727421321920,0.179628,65519.0,65518.0,0.546251]
[1727421323906,0.183628,65519.0,65518.0,0.55220155]
[1727421326182,0.183628,65519.0,65518.0,0.546251]
[1727421326811,0.183628,65519.0,65518.0,0.40891694]
[1727421327033,0.183628,65519.0,65518.0,0.546251]
[1727421328419,0.183628,65519.0,65518.0,0.40891694]
[1727421328650,0.183628,65519.0,65518.0,0.54624816]
[1727421329324,0.183628,65519.0,65518.0,0.40891694]
[1727421329625,0.183628,65519.0,65518.0,0.54624816]
[1727421329838,0.183628,65519.0,65518.0,0.40891694]
[1727421330053,0.183628,65519.0,65518.0,0.54624816]
[1727421330272,0.183628,65519.0,65518.0,0.40891694]
[1727421344289,0.183628,65519.0,65518.0,0.54626716]
[1727421345680,0.183628,65519.0,65518.0,0.40891694]
[1727421352024,0.183628,65519.0,65518.0,0.253629]
[1727421352244,0.183628,65519.0,65518.0,0.36817279]
[1727421352465,0.183628,65519.0,65518.0,0.34526345]
[1727421352684,0.183628,65519.0,65518.0,0.253629]
[1727421353371,0.183628,65519.0,65518.0,0.32235314]
[1727421353594,0.179628,65519.0,65518.0,0.32135314]
[1727421353816,0.179628,65519.0,65518.0,0.3213531]
[1727421354038,0.179628,65519.0,65518.0,0.253629]
[1727421354039,0.188628,65519.0,65518.0,0.253629]
[1727421354272,0.175628,65519.0,65518.0,0.252629]
[1727421354502,0.192628,65519.0,65518.0,0.254629]
[1727421354744,0.192628,65519.0,65518.0,0.32335082]
[1727421354982,0.185628,65519.0,65518.0,0.253629]
[1727421355217,0.194628,65519.0,65518.0,0.254629]
[1727421355477,0.194628,65519.0,65518.0,0.32334374]
[1727421357298,0.194628,65519.0,65518.0,0.254629]
[1727421357519,0.194628,65519.0,65518.0,0.154629]
[1727421357738,0.194628,65519.0,65518.0,0.20043031]
[1727421358849,0.194628,65519.0,65518.0,0.154629]
[1727421361812,0.194628,65519.0,65518.0,0.002]
[1727421362916,0.194628,65519.0,65518.0,0.154629]
[1727421363146,0.194628,65519.0,65518.0,0.002]
[1727421364686,0.652518,65519.0,65518.0,0.002]
[1727421367556,0.805145,65519.0,65518.0,0.002]
[1727421367782,0.652518,65519.0,65518.0,0.002]
[1727421367978,0.805145,65519.0,65518.0,0.002]
[1727421372260,0.89041034,65519.0,65518.0,0.002]
[1727421372919,0.805145,65519.0,65518.0,0.002]
[1727421373997,0.652518,65519.0,65518.0,0.002]
[1727421374226,0.805145,65519.0,65518.0,0.002]
[1727421374685,0.652518,65519.0,65518.0,0.002]
[1727421374909,0.805145,65519.0,65518.0,0.002]
[1727421375433,0.652518,65519.0,65518.0,0.002]
[1727421377252,0.652518,65519.0,65518.0,0.154629]
[1727421377474,0.652518,65519.0,65518.0,0.002]
[1727421382051,0.652518,65519.0,65518.0,0.154629]
[1727421383466,0.477718,65519.0,65518.0,0.44878182]
[1727421383693,0.477718,65519.0,65518.0,0.50304818]
[1727421384136,0.477718,65519.0,65518.0,0.61738229]
[1727421384854,0.467718,65519.0,65518.0,0.61638229]
[1727421385078,0.458718,65519.0,65518.0,0.61538229]
[1727421385300,0.472718,65519.0,65518.0,0.69948229]
[1727421385514,0.464718,65519.0,65518.0,0.69848229]
[1727421386031,0.466718,65519.0,65518.0,0.69848229]
[1727421386250,0.464718,65519.0,65518.0,0.69848229]
[1727421386691,0.458718,65519.0,65518.0,0.69748229]
[1727421386941,0.463718,65519.0,65518.0,0.69748229]
[1727421387177,0.463718,65519.0,65518.0,0.58314818]
[1727421387624,0.470718,65519.0,65518.0,0.58414818]
[1727421387845,0.463718,65519.0,65518.0,0.5890063]
[1727421388301,0.464718,65519.0,65518.0,0.5900063]
[1727421388529,0.468718,65519.0,65518.0,0.5900063]
[1727421390102,0.464718,65519.0,65518.0,0.5900063]
[1727421390551,0.458718,65519.0,65518.0,0.5890063]
[1727421390849,0.458718,65519.0,65518.0,0.5900063]
[1727421390943,0.465718,65519.0,65518.0,0.5900063]
[1727421392037,0.470718,65519.0,65518.0,0.5900063]
[1727421392254,0.463718,65519.0,65518.0,0.5890063]
[1727421392479,0.464718,65519.0,65518.0,0.5900063]
[1727421392700,0.464718,65519.0,65518.0,0.72715803]
[1727421392947,0.468718,65519.0,65518.0,0.72715803]
[1727421393183,0.001656,65521.0,65520.0,0.002]
[1727421393412,0.001656,65521.0,65520.0,0.61586503]
[1727421393631,0.001656,65521.0,65520.0,0.61281294]
[1727421394772,0.015656,65521.0,65520.0,0.61481294]
[1727421395002,0.01559767,65521.0,65520.0,0.66479852]
[1727421395232,0.01559767,65521.0,65520.0,0.61481294]
[1727421400757,6.7e-07,65521.0,65520.0,0.61481294]
[1727421401928,0.001654,65524.0,65523.0,0.375218]
[1727421402163,0.001654,65524.0,65523.0,0.73765795]
[1727421402841,0.001654,65530.0,65523.0,0.73765795]
[1727421402842,0.001654,65530.0,65528.0,0.275606]
[1727421403085,0.001654,65530.0,65528.0,0.62467688]
[1727421403321,0.001654,65530.0,65528.0,0.73561914]
[1727421403808,0.001654,65530.0,65528.0,0.73759437]
[1727421404035,0.001654,65530.0,65528.0,0.73759518]
[1727421404260,0.001654,65530.0,65528.0,0.73859518]
[1727421404499,0.001654,65530.0,65528.0,0.73759518]
[1727421404740,0.001654,65530.0,65528.0,0.62362518]
[1727421404965,0.001654,65530.0,65528.0,0.62862518]
[1727421405209,0.001654,65530.0,65528.0,0.74059518]
[1727421405455,0.001654,65530.0,65528.0,0.62362518]
[1727421405681,0.001654,65530.0,65528.0,0.62662518]
[1727421405915,0.001654,65530.0,65528.0,0.71776931]
[1727421406445,0.001654,65530.0,65528.0,0.62762518]
[1727421406673,0.001654,65530.0,65528.0,0.62662518]
[1727421407126,0.001654,65530.0,65528.0,0.62862518]